[Event "SixDays Budapest GM-A May 2024"]
[Site "Budapest"]
[Date "2024.05.16"]
[Round "1.1"]
[White "Nagy, Gabor"]
[Black "Ramoutar, Alan-Safar"]
[Result "1-0"]
[ECO "D35"]
[WhiteElo "2433"]
[BlackElo "2360"]
[Annotator "TA"]
[PlyCount "69"]
[EventDate "2024.05.15"]
[EventType "tourn"]
[EventCountry "HUN"]
[SourceTitle "playchess.com"]
[Source "ChessBase"]
[SourceQuality "1"]
[TimeControl "40/5400+30:1800+30"]

{[%evp 15,69,13,17,17,21,13,22,25,27,11,16,9,55,45,63,49,68,65,50,53,61,57,160,160,162,86,194,206,212,203,230,227,247,221,250,274,277,270,304,339,326,289,312,305,327,339,364,370,469,450,822,800,29981,3369,3461,761]} 1. c4 {[%emt 0:00:06]} e6 {[%emt 0:00:19]} 2. Nc3 {[%emt 0:00:18]} d5 {[%emt 0:00:10]} 3. d4 {[%emt 0:00:25]} Nf6 {[%emt 0:00:31]} 4. cxd5 {[%emt 0:06:27]} exd5 {[%emt 0:00:09]} 5. Bg5 {[%emt 0:00:22]} c6 {[%emt 0:00:28]} 6. e3 {[%emt 0:02:09]} h6 {[%emt 0:01:09]} 7. Bh4 {[%emt 0:01:12]} Be7 {[%emt 0:00:11]} 8. Bd3 {[%emt 0:01:03]} O-O {[%emt 0:00:25]} 9. Nge2 {[%emt 0:00:57]} Re8 {[%emt 0:00:37]} 10. O-O {[%emt 0:04:59]} a5 {[%emt 0:00:57]} 11. Rc1 {[%emt 0:03:12] The position is equal.} Nbd7 {[%emt 0:00:21]} 12. Bg3 {[%emt 0:03:03][%cal Oc3b5] With the idea Nb5!} Bf8 {[%emt 0:08:23]} 13. Nf4 {[%emt 0:04:07] Prevents Nh5} g5 {[%emt 0:10:49]} (13... Ne4 $11 {was preferrable.}) 14. Nfe2 {[%emt 0:04:42]} Ne4 {[%emt 0:11:04]} 15. Nxe4 {[%emt 0:04:38]} dxe4 {[%emt 0:00:19]} 16. Bb1 {[%emt 0:00:08]} Nf6 {[%emt 0:07:00]} 17. Nc3 {[%emt 0:03:37]} Bg4 {[%emt 0:16:26]} 18. Qb3 {[%emt 0:03:21]} Ra7 {[%emt 0:16:42] [#]} (18... Bb4 $1 $14) 19. Be5 $1 $16 {[%emt 0:07:00]} Nd7 20. f3 {[%emt 0:01:57]} (20. Nxe4 $6 Nxe5 21. dxe5 Rxe5 $16) ({Better is} 20. f4 $18) 20... Be6 {[%emt 0:08:38]} (20... Nxe5 $16 21. fxg4 a4 22. Nxa4 b5) 21. Qc2 $18 {[%emt 0:00:35]} Nxe5 {[%emt 0:01:30]} 22. dxe5 {[%emt 0:00:08]} Bf5 {[%emt 0:03:30][%cal Of8c5] [#]} 23. f4 $1 {[%emt 0:04:16]} (23. Nxe4 Rxe5 24. Rfd1 Bxe4 25. fxe4 Qe8 $15) (23. fxe4 Bg6 24. Ne2 Rxe5 $17) 23... gxf4 {[%emt 0:00:05]} 24. exf4 {[%emt 0:00:30]} (24. Nxe4 Rxe5 25. Rxf4 Bg6 $11) 24... Bg7 {[%emt 0:05:41]} 25. Qf2 {[%emt 0:00:52]} (25. Nxe4 Qd4+ 26. Qf2 Rd8 27. Qxd4 Rxd4) 25... Ra8 {[%emt 0:00:54]} 26. Bxe4 {[%emt 0:01:03]} Bc8 {[%emt 0:02:05]} 27. Bb1 {[%emt 0:01:54]} f5 {[%emt 0:00:27]} 28. Rfd1 {[%emt 0:01:15]} Qe7 {[%emt 0:00:42]} 29. Ne2 {[%emt 0:01:37]} Be6 {[%emt 0:01:43]} 30. Nd4 {[%emt 0:00:13]} Rf8 {[%emt 0:01:35]} 31. Qg3 {[%emt 0:05:32]} Rad8 {[%emt 0:01:37]} 32. Qg6 {[%emt 0:00:26][%csl LRe6,LRf5]} Bc8 {[%emt 0:00:27]} (32... Rfe8 $142 33. Nxe6 (33. Nxf5 Bxf5 34. Bxf5 Rxd1+ 35. Rxd1 Kf8 $18) (33. Bxf5 Bf7 $18) 33... Rxd1+ 34. Rxd1 Qxe6 35. Qxe6+ (35. Bxf5 Qxg6 36. Bxg6 Re7 $18) (35. Qxf5 Qxf5 36. Bxf5 a4 $18) 35... Rxe6 36. Rd8+ (36. Bxf5 Re8 $18) 36... Bf8 37. Bxf5 Re7) 33. Bxf5 {[%emt 0:01:10]} Rxd4 {[%emt 0:00:42]} 34. Qh7+ {[%emt 0:00:05]} (34. Rxd4 Bxf5 35. Qd6 Qxd6 36. Rxd6 Rf7 $11) 34... Kf7 {[%emt 0:00:06]} 35. Rxd4 {[%emt 0:00:22] Weighted Error Value: White=0.08 (flawless) /Black=0.49.  Mistake:       	White=1     	Black=4      Inaccurate:     	---       	Black=1      OK:         	White=15    	Black=6      Best:        	White=2     	---} (35. Bg6+ $142 Ke6 36. Rxd4 Bxe5 37. Re1 (37. fxe5 Qxh7 38. Bxh7 Rh8 $18) 37... Qxh7 38. Rxe5+ (38. Bxh7 Kf7 $18) 38... Kf6 39. Rd6+ (39. Bxh7 Kg7 $18) 39... Kg7 40. Re7+ (40. Bxh7 Kxh7 41. Re7+ Kg8 $18) 40... Kh8 41. Bxh7 (41. Rxh7+ Kg8 $18)) 1-0

[Event "SixDays Budapest GM-A May 2024"]
[Site "Budapest"]
[Date "2024.05.16"]
[Round "1.2"]
[White "Sahib Singh"]
[Black "Berczes, David"]
[Result "1/2-1/2"]
[ECO "C88"]
[WhiteElo "2291"]
[BlackElo "2425"]
[Annotator "TA"]
[PlyCount "101"]
[EventDate "2024.05.15"]
[EventType "tourn"]
[EventCountry "HUN"]
[SourceTitle "playchess.com"]
[Source "ChessBase"]
[SourceQuality "1"]
[TimeControl "40/5400+30:1800+30"]

{[%evp 15,101,32,40,37,45,43,35,50,41,41,49,35,23,27,37,18,24,14,14,19,19,13,13,6,8,2,26,20,28,-10,0,-11,-4,-6,-13,-2,-5,-66,-72,-142,-132,-128,-29,-16,-27,-16,-21,-21,-18,-39,-54,-45,-20,-20,-1,-10,-6,-8,-6,-8,-5,-13,-13,-13,-13,-43,-41,-112,-59,-54,-54,-35,-22,-28,-26,-27,0,0,0,-87,8,8,8,8,8,8,8,8]} 1. e4 {[%emt 0:00:02]} e5 {[%emt 0:00:11]} 2. Nf3 {[%emt 0:00:03]} Nc6 {[%emt 0:00:04]} 3. Bb5 {[%emt 0:00:03][%cal Bf1b5,Bb5a4,Ba4b3][%mdl 32]} a6 {[%emt 0:00:19]} 4. Ba4 {[%emt 0:00:04]} Nf6 {[%emt 0:00:06]} 5. O-O {[%emt 0:00:02]} Be7 {[%emt 0:00:06]} 6. Re1 {[%emt 0:00:03]} b5 {[%emt 0:00:05]} 7. Bb3 {[%emt 0:00:03]} O-O {[%emt 0:00:18]} 8. c3 {[%emt 0:00:02]} Na5 {[%emt 0:01:28]} 9. Bc2 {[%emt 0:06:39]} d5 {[%emt 0:00:28]} 10. exd5 {[%emt 0:07:49]} e4 {[%emt 0:00:26]} 11. Bxe4 {[%emt 0:12:24] White is slightly better.} Nxe4 {[%emt 0:04:30]} 12. Rxe4 {[%emt 0:00:10]} Bb7 {[%emt 0:00:36][%cal Oe7f6]} 13. d3 {[%emt 0:04:35] Strongly threatening Qe2.} Bxd5 {[%emt 0:16:01]} 14. Re1 {[%emt 0:00:06]} c5 {[%emt 0:07:05]} 15. Nbd2 {[%emt 0:02:01]} Nc6 {[%emt 0:02:20]} 16. a4 {[%emt 0:02:34]} Qd7 {[%emt 0:25:46]} 17. axb5 {[%emt 0:18:06]} axb5 {[%emt 0:00:48]} 18. Rxa8 {[%emt 0:00:04]} Rxa8 {[%emt 0:00:05]} 19. Qe2 {[%emt 0:06:23]} Be6 {[%emt 0:15:48]} 20. Ne4 {[%emt 0:02:03]} h6 {[%emt 0:01:39]} 21. Be3 {[%emt 0:02:32]} Qd5 {[%emt 0:04:19]} 22. h3 {[%emt 0:10:22]} Rd8 {[%emt 0:04:36]} 23. Nfd2 {[%emt 0:09:26]} Qxd3 {[%emt 0:08:59]} 24. Qxd3 {[%emt 0:01:55]} Rxd3 {[%emt 0:00:04]} 25. Nb1 {[%emt 0:02:15]} Rd5 {[%emt 0:03:03]} 26. Nbd2 {[%emt 0:05:09]} (26. c4 $11 bxc4 27. Nbc3) 26... Ne5 $1 $15 {[%emt 0:02:02] Hoping for ...Nd3.} 27. Nb3 {[%emt 0:00:46] [#]} (27. g4 $142) 27... Nd3 $1 $17 {[%emt 0:00:20][%csl LRb2,LRe1]} 28. Rd1 {[%emt 0:00:03][%cal Ob3c5]} Rd7 {[%emt 0:01:24]} (28... Nxb2 $17 29. Rxd5 Bxd5 30. Nexc5 Na4) 29. Nc1 $1 $11 {[%emt 0:01:44]} Nxb2 {[%emt 0:00:59]} 30. Rxd7 {[%emt 0:00:06]} Bxd7 {[%emt 0:00:03]} 31. Nxc5 {[%emt 0:00:49]} Bf5 {[%emt 0:01:00]} 32. N1b3 {[%emt 0:00:37]} Na4 {[%emt 0:00:16]} 33. Bd4 $1 {[%emt 0:00:23]} Bc2 {[%emt 0:00:42]} 34. Kf1 {[%emt 0:01:10]} Nb2 {[%emt 0:00:54]} 35. Ke2 {[%emt 0:02:09]} h5 {[%emt 0:00:10]} 36. Kd2 {[%emt 0:02:50]} Bf5 {[%emt 0:00:04]} 37. f3 {[%emt 0:00:26]} h4 {[%emt 0:00:43]} 38. Ke2 {[%emt 0:01:06]} Na4 {[%emt 0:00:53]} 39. Kd2 {[%emt 0:01:33]} Kh7 {[%emt 0:00:47]} 40. Nb7 {[%emt 0:01:06]} Be6 {[%emt 0:00:15]} 41. Nc1 {[%emt 0:30:43] [#]} ({White should play} 41. N7a5 $15) 41... Bd5 {[%emt 0:30:46]} (41... Bc8 $1 $17 {[%cal Rc8b7]} 42. Na5 Bg5+ 43. Kd1 Nb2+ 44. Kc2 Bxc1) 42. Na5 $15 {[%emt 0:00:07]} Bd8 {[%emt 0:00:29]} 43. Nab3 {[%emt 0:00:24]} Bc4 {[%emt 0:00:30] aiming for ...Bf1.} 44. Ke3 $1 {[%emt 0:00:40]} Nb6 {[%emt 0:00:30]} 45. Nd2 {[%emt 0:00:38]} Bg5+ {[%emt 0:00:27] This pair of bishops is nice.} 46. f4 {[%emt 0:00:04]} Nd5+ {[%emt 0:00:04]} 47. Kf3 {[%emt 0:00:30]} (47. Ke4 $11 Nxf4 48. Nxc4 bxc4 49. Be3) 47... Bxf4 {[%emt 0:00:50]} ({Better is} 47... Nxf4 $17 {Threatens to win with ...Bd5+.} 48. Nxc4 bxc4) 48. Nxc4 $11 {[%emt 0:00:04] The position is equal.} Bxc1 {[%emt 0:00:10]} 49. Nd6 {[%emt 0:00:07][%csl LRb5,LRf7]} b4 {[%emt 0:00:30]} 50. cxb4 {[%emt 0:00:15]} ({Don't play} 50. Nxf7 b3 (50... bxc3 51. Ke4 $11) (50... Nxc3 51. Ne5 $17) 51. c4 Ne7 $19) 50... Nxb4 {[%emt 0:00:13]} 51. Nxf7 {[%emt 0:00:05] Weighted Error Value: White=0.14 (very precise) /Black=0.14 (very precise) .  Mistake:       	White=4     	Black=3      Inaccurate:     	White=2     	Black=1      OK:         	White=20    	Black=15     Best:        	White=1     	Black=1      Strong:       	White=3     	Black=2} 1/2-1/2

[Event "SixDays Budapest GM-A May 2024"]
[Site "Budapest"]
[Date "2024.05.16"]
[Round "1.3"]
[White "Sathvik Adiga"]
[Black "Tan, Jun Ying"]
[Result "0-1"]
[ECO "B62"]
[WhiteElo "2398"]
[BlackElo "2307"]
[Annotator "TA"]
[PlyCount "90"]
[EventDate "2024.05.15"]
[EventType "tourn"]
[EventCountry "HUN"]
[SourceTitle "playchess.com"]
[Source "ChessBase"]
[SourceQuality "1"]
[TimeControl "40/5400+30:1800+30"]

{[%evp 16,90,35,34,40,7,0,0,0,-37,-37,-69,-36,-119,-110,-104,0,0,9,17,11,27,72,35,49,-12,-13,-14,-33,-41,-37,-71,-57,-139,-176,-168,-172,-229,-230,-214,-213,-374,-382,-479,-269,-390,-302,-1429,-1425,-1758,-1659,-1815,-1763,-1675,-1791,-4133,-2287,-2039,-926,-926,-926,-825,-732,-29991,-1187,-29986,-29980,-29980,-29980,-29976,-4133,-29989,-29977,-29992,-29993,-29997,-29998]} 1. e4 {[%emt 0:00:02]} c5 {[%emt 0:00:07]} 2. Nf3 {[%emt 0:00:02]} d6 {[%emt 0:00:03]} 3. d4 {[%emt 0:00:16]} cxd4 {[%emt 0:00:04]} 4. Nxd4 {[%emt 0:00:05]} Nf6 {[%emt 0:00:04]} 5. Nc3 {[%emt 0:00:07]} Nc6 {[%emt 0:00:03]} 6. Bg5 {[%emt 0:00:14]} e6 {[%emt 0:00:05]} 7. Qd3 {[%emt 0:00:04]} Bd7 {[%emt 0:00:17]} 8. O-O-O {[%emt 0:02:03]} a6 {[%emt 0:00:23]} 9. f4 {[%emt 0:04:36]} Be7 $1 {[%emt 0:00:16] The main line 9...Be7 scores better than 9...h6. B62: Sicilian: Richter-Rauzer: 6...e6: Unusual White 7th moves.} 10. Kb1 {[%emt 0:02:42]} h6 {[%emt 0:15:28]} 11. Bh4 {[%emt 0:05:42]} O-O {[%emt 0:00:18][%cal Of6e4]} 12. Be1 $146 {[%emt 0:09:52]} ({Predecessor:} 12. Nf3 Qb6 13. e5 dxe5 14. fxe5 Nd5 15. Nxd5 exd5 16. Qxd5 Rad8 17. Bxe7 Nxe7 18. Qd2 Bc6 19. Bd3 Ng6 20. Rhe1 Rfe8 21. e6 {½-½ Bos,H (2434)-Vaclav,I (2459) ICCF GMN/028 email 2011}) 12... Qc7 {[%emt 0:18:37]} 13. Be2 {[%emt 0:08:39]} Rac8 {[%emt 0:03:46]} 14. g4 {[%emt 0:06:23]} (14. Nxc6 $15 Bxc6 15. Bf3) 14... Nxd4 $1 $17 {[%emt 0:05:29]} 15. Qxd4 {[%emt 0:00:08]} e5 {[%emt 0:00:12]} (15... Nxe4 $1 $17 {aiming for ...d5.} 16. h4 (16. Qxe4 $2 Bc6 $19) 16... d5) 16. Qd2 $11 {[%emt 0:01:40]} Bc6 {[%emt 0:18:50]} (16... Bxg4 $2 17. Bxg4 Nxg4 18. Rg1 $18) 17. Bf3 {[%emt 0:02:16] Black must now prevent g5.} exf4 {[%emt 0:03:52]} 18. h4 {[%emt 0:13:00]} Nd7 {[%emt 0:05:43]} 19. Qxf4 {[%emt 0:01:00]} (19. g5 $5) 19... b5 {[%emt 0:07:09]} 20. Rc1 {[%emt 0:03:42]} ({Better is} 20. Qc1 $14) 20... Bf6 {[%emt 0:06:56]} 21. g5 {[%emt 0:01:28]} Be5 {[%emt 0:00:28]} 22. Qd2 {[%emt 0:03:13] [#]} h5 $1 {[%emt 0:04:55]} 23. Bxh5 {[%emt 0:07:17] [#]} (23. Nd5 Bxd5) 23... Nb6 $1 {[%emt 0:00:17] Hoping for ...Nc4.} 24. Be2 {[%emt 0:01:03] [#]} (24. g6 $1 $15 fxg6 25. Bxg6) 24... b4 $1 $17 {[%emt 0:02:31]} 25. Nd1 {[%emt 0:02:09][%cal Od2e3]} Bxe4 {[%emt 0:00:26]} 26. Rf1 {[%emt 0:01:01]} (26. Rh3 {was forced.}) 26... Nc4 $19 {[%emt 0:03:43]} 27. Bxc4 {[%emt 0:06:46]} Qxc4 {[%emt 0:00:01]} 28. Ne3 $2 {[%emt 0:00:10]} (28. Rf2) 28... Qe6 {[%emt 0:00:09]} 29. Ka1 {[%emt 0:09:49]} a5 {[%emt 0:00:37]} (29... Rc5 $142 {Strongly threatening ...Ra5.} 30. Qe2 a5) 30. Rg1 {[%emt 0:00:47]} (30. Qe2 $142) 30... a4 {[%emt 0:01:23] Threatens to win with ...a3.} 31. Ng4 $2 {[%emt 0:01:57]} (31. Bg3 a3 (31... b3 32. Bxe5 dxe5 33. cxb3 $19) 32. Bxe5 Qxe5 33. c4) 31... a3 {[%emt 0:01:11]} 32. c3 {[%emt 0:02:34]} bxc3 {[%emt 0:01:06]} 33. bxc3 {[%emt 0:00:15]} Rb8 {[%emt 0:00:30] ( -> ...Rb2)} 34. Nf6+ {[%emt 0:02:44]} gxf6 {[%emt 0:00:30]} 35. gxf6+ {[%emt 0:00:15]} Bg6 {[%emt 0:00:40]} 36. Rc2 {[%emt 0:00:08] Against Rb2} Rb2 {[%emt 0:01:42]} (36... Bxf6 $142 37. h5 Rb2 38. Rxb2 axb2+ 39. Qxb2 Qe3) 37. Rxb2 {[%emt 0:00:08]} axb2+ {[%emt 0:00:01]} 38. Qxb2 {[%emt 0:00:01]} Qf5 {[%emt 0:00:57]} 39. Rh1 {[%emt 0:04:25]} Bxf6 {[%emt 0:00:21]} (39... Qf3 $142 40. a3 Qxh1 41. Ka2 Qxe1 42. h5 Be4 (42... Qxc3 43. Qxc3 Bxc3 44. Kb3 Bxf6 45. Kc4 Rc8+ 46. Kd5 Bxh5 47. Ke4 Rc3 48. a4 Kf8 49. Kd5 Ke7 50. Ke4 d5+ 51. Kxd5 Bf3#) 43. h6 Bd5+ (43... Qxc3 44. h7+ Kxh7 45. Qxc3 Bxc3 46. Kb3 Rc8 47. a4 Rc5 48. a5 Bxf6 49. Ka4 Bd5 50. Ka3 Bc3 51. a6 Ra5#) 44. Qb3 Bxb3+ 45. Kxb3 Rb8+ (45... Bxf6 46. h7+ Kxh7 47. Kb4 Qb1+ 48. Kc4 Rc8+ 49. Kd5 Qd3#) 46. Ka4 Qe4+ 47. Ka5 Qa8#) 40. Bf2 {[%emt 0:00:26]} Rc8 {[%emt 0:00:19]} 41. Bd4 {[%emt 0:30:46]} Bxd4 {[%emt 0:30:04]} 42. cxd4 {[%emt 0:00:05]} Qd5 {[%emt 0:00:56]} (42... Rc2 $142 43. Rc1 Rxb2 44. Kxb2 Qb5+ 45. Ka3 Qd3+ 46. Kb4 Qd2+ (46... Qxd4+ $2 47. Kb3 $19) 47. Rc3 Bc2 (47... Qxa2 $2 48. Rb3 $19) (47... Qxd4+ $2 48. Kb3 $19) 48. a3 Qxd4+ 49. Rc4 Qb6+ 50. Kc3 Qb3+ 51. Kd2 Qxc4 52. Ke1 Qd3 (52... Qxh4+ {gets mated.} 53. Ke2 Qg3 54. Kd2 Ba4 55. Ke2 f5 56. Kd2 f4 57. Kc1 Qb3 58. Kd2 Qe3#) 53. Kf2 Bd1 (53... Qxa3 {leads to mate.} 54. h5 Bd1 55. h6 Qf3+ 56. Kg1 Kh7 57. Kh2 Qf2+ 58. Kh3 Qg1 59. Kh4 Qg4#) 54. Kg1 Qf3 (54... Qxa3 {is a self mate.} 55. Kh2 Qf3 56. Kg1 Ba4 57. h5 Qg3+ 58. Kh1 Bc6#) 55. Kh2 Qf2+ (55... Qxa3 56. h5 Bxh5 57. Kg2 Qf3+ 58. Kh2 Bg6 59. Kg1 Qg3+ 60. Kh1 Be4#) 56. Kh3 f5 57. h5 Bg4#) 43. Rh2 {[%emt 0:00:23]} Re8 {[%emt 0:00:41]} 44. Qc3 {[%emt 0:00:27]} Rb8 {[%emt 0:00:21][%csl Gg6][%cal Rb8b1]} 45. Rb2 {[%emt 0:00:25]} Qh1+ {[%emt 0:00:09]} 0-1

[Event "SixDays Budapest GM-A May 2024"]
[Site "Budapest"]
[Date "2024.05.16"]
[Round "1.4"]
[White "Wadsworth, Matthew J"]
[Black "Krastev, Alexander"]
[Result "1-0"]
[ECO "E16"]
[WhiteElo "2470"]
[BlackElo "2458"]
[Annotator "TA"]
[PlyCount "117"]
[EventDate "2024.05.15"]
[EventType "tourn"]
[EventCountry "HUN"]
[SourceTitle "playchess.com"]
[Source "ChessBase"]
[SourceQuality "1"]
[TimeControl "40/5400+30:1800+30"]

{[%evp 45,117,77,131,131,252,246,223,266,243,167,221,172,141,0,0,0,0,0,0,0,48,0,41,35,157,157,159,162,180,190,437,429,847,847,861,868,870,777,831,857,809,879,879,882,876,831,883,868,910,920,927,898,937,930,955,968,1265,1222,1457,1401,12800,6215,29951,29956,29953,29956,12357,7718,29978,12371,6199,5106,5110,4132]} 1. d4 {[%emt 0:00:02]} Nf6 {[%emt 0:00:05]} 2. c4 {[%emt 0:00:17]} e6 {[%emt 0:00:04]} 3. Nf3 {[%emt 0:00:08]} b6 {[%emt 0:00:50]} 4. g3 {[%emt 0:00:33]} Bb7 {[%emt 0:00:06]} 5. Bg2 {[%emt 0:00:18]} Bb4+ {[%emt 0:00:05]} 6. Bd2 {[%emt 0:01:18]} a5 {[%emt 0:00:04]} 7. O-O {[%emt 0:02:51]} O-O {[%emt 0:00:15]} 8. Bg5 {[%emt 0:03:17]} h6 {[%emt 0:01:54] E16: Queen's Indian: 4 g3 Bb7 5 Bg2 Bb4+.} 9. Bxf6 {[%emt 0:02:10]} Qxf6 {[%emt 0:00:34]} 10. a3 {[%emt 0:00:23]} Be7 {[%emt 0:05:05]} 11. Nc3 {[%emt 0:01:00]} Rc8 $146 {[%emt 0:01:12]} ({Predecessor:} 11... d6 12. Rc1 Nd7 13. e4 e5 14. Nd5 Bxd5 15. cxd5 Ra7 16. Bh3 Rd8 17. Bxd7 Rxd7 18. dxe5 dxe5 {1-0 Halkias,S (2506)-Hnydiuk,A (2361) Titled Tuesday intern op 18th Oct Early blitz 2022 (6)}) 12. e4 {[%emt 0:04:21]} Bf8 {[%emt 0:00:09]} 13. e5 {[%emt 0:02:25]} Qe7 {[%emt 0:00:23]} 14. Re1 {[%emt 0:02:27]} Na6 {[%emt 0:08:47]} 15. Rb1 {[%emt 0:05:26]} c6 {[%emt 0:12:59]} 16. Ne4 {[%emt 0:08:53]} Nc7 {[%emt 0:00:09]} 17. h4 {[%emt 0:02:50]} Ne8 {[%emt 0:14:21]} 18. c5 {[%emt 0:08:24]} Ba6 {[%emt 0:04:01]} 19. Qc2 {[%emt 0:02:27]} Nc7 {[%emt 0:03:17]} 20. Nh2 {[%emt 0:06:15]} Rcb8 {[%emt 0:16:44]} 21. Ng4 {[%emt 0:03:54]} Ne8 {[%emt 0:00:05]} 22. Nd6 {[%emt 0:03:47]} a4 {[%emt 0:06:05] [#]} 23. Re3 {[%emt 0:02:44]} (23. Qxa4 Bd3 $17 (23... Be2 24. Qxa8 Rxa8 $15)) (23. Re4 $1 $18 {is the precise move to win.}) 23... h5 {[%emt 0:22:11]} (23... bxc5 $142 24. dxc5 h5) 24. Rf3 $1 $16 {[%emt 0:06:48]} hxg4 {[%emt 0:01:42]} (24... Nxd6 $16 {is a better defense.} 25. cxd6 Qe8) 25. Rxf7 $18 {[%emt 0:00:10]} Qxf7 {[%emt 0:00:11]} 26. Nxf7 {[%emt 0:00:10]} Kxf7 {[%emt 0:00:03]} 27. Qh7 {[%emt 0:06:11]} (27. Qxa4 Bd3 (27... bxc5 28. dxc5 Kg8 29. Qd4 $18) 28. Qd1 Bxb1 29. Qxb1 Ke7 (29... bxc5 30. Qc1 $15) 30. cxb6 d5 (30... Rxb6 31. Be4 $17) 31. exd6+ Kd7 $11) 27... Ke7 {[%emt 0:00:18]} (27... bxc5 {was worth a try.} 28. Qh5+ g6 29. Qh7+ (29. Qxg4 Bd3 $16) 29... Ng7) 28. Be4 {[%emt 0:05:16]} bxc5 {[%emt 0:02:07]} 29. Bg6 {[%emt 0:02:56]} ({Don't do} 29. dxc5 $6 Kd8 $14) ({White should play} 29. Qh5 $16 {Strongly threatening Qg5+.} cxd4 30. Qg5+ (30. Qxg4 Kd8 $15) 30... Nf6 31. Rd1 (31. exf6+ gxf6 32. Qxg4 f5 $18)) 29... cxd4 $11 {[%emt 0:00:07]} 30. Qg8 {[%emt 0:01:18]} Nd6 $1 {[%emt 0:00:05]} 31. exd6+ {[%emt 0:01:31]} Kxd6 {[%emt 0:00:01]} 32. Qf7 {[%emt 0:00:25]} Bc4 {[%emt 0:01:28]} (32... Be2 $11) 33. Qf4+ {[%emt 0:03:33]} e5 {[%emt 0:00:24]} 34. Qxg4 {[%emt 0:00:34]} Be7 {[%emt 0:01:06] [#]} (34... Kc7 $14) 35. Bf5 $1 $16 {[%emt 0:01:25]} Bf6 {[%emt 0:00:15]} 36. Bxd7 {[%emt 0:01:10]} Ra7 {[%emt 0:00:16]} 37. Rc1 {[%emt 0:01:45]} Bd5 $2 {[%emt 0:00:24]} (37... Rxd7 38. Rxc4 d3) 38. Rxc6+ $1 $18 {[%emt 0:02:02]} Bxc6 {[%emt 0:00:01]} (38... Ke7 $142) 39. Qe6+ $18 {[%emt 0:00:10]} Kc7 {[%emt 0:00:02]} 40. Qxc6+ {[%emt 0:01:41]} Kd8 {[%emt 0:00:01]} 41. Bf5 {[%emt 0:30:27]} Rbb7 {[%emt 0:32:13]} 42. Qd6+ {[%emt 0:00:55]} Rd7 {[%emt 0:00:01]} 43. Qf8+ {[%emt 0:00:26]} Kc7 {[%emt 0:00:01]} 44. Bxd7 {[%emt 0:00:23]} Kxd7 {[%emt 0:00:05]} 45. Qf7+ {[%emt 0:00:11]} Be7 {[%emt 0:00:03]} 46. Qxg7 {[%emt 0:00:26]} Ra6 {[%emt 0:01:03]} 47. Qxe5 {[%emt 0:01:44]} Rd6 {[%emt 0:00:14]} 48. Qb5+ {[%emt 0:00:28]} Ke6 {[%emt 0:00:06]} 49. Kf1 {[%emt 0:00:46]} d3 {[%emt 0:00:06]} 50. Ke1 {[%emt 0:00:26]} d2+ {[%emt 0:00:08]} 51. Kd1 {[%emt 0:00:05]} Rd4 {[%emt 0:00:27]} 52. h5 {[%emt 0:01:29]} Bf6 {[%emt 0:00:29]} 53. h6 {[%emt 0:00:35]} Kf7 {[%emt 0:00:21]} 54. Qh5+ {[%emt 0:00:19]} Ke7 {[%emt 0:00:19]} 55. h7 {[%emt 0:00:40]} Rd8 {[%emt 0:00:03]} 56. Qc5+ {[%emt 0:00:43]} Kf7 {[%emt 0:00:57]} 57. Qc7+ {[%emt 0:00:09]} Ke8 {[%emt 0:00:01]} 58. Qa5 {[%emt 0:00:45]} Ke7 {[%emt 0:01:45]} 59. g4 {[%emt 0:01:41]} 1-0